bitfinex/quotes_SOLUSD_20250207
["timestamp","ask_amount","ask_price","bid_price","bid_amount"]
[1738894931913,25.26416921,195.04,194.99,5.1282]
[1738894932639,25.26416921,195.05,194.99,5.1282]
[1738894932840,25.29416921,195.07,195.0,0.76912317]
[1738894933139,0.03,195.07,195.04,25.26416921]
[1738894933328,0.03,195.07,195.05,25.26416921]
[1738894933634,0.03,195.07,195.06,5.1266]
[1738894934711,0.03,195.07,195.04,5.1269]
[1738894934922,0.03,195.07,195.04,30.39106921]
[1738894935113,25.26416921,195.05,195.04,5.1269]
[1738894935723,25.26416921,195.05,195.0,5.1282]
[1738894936211,25.29416921,195.07,195.03,20.0]
[1738894936416,25.29416921,195.07,195.01,0.76903303]
[1738894936417,0.03,195.07,195.01,26.03320224]
[1738894936940,0.03,195.07,195.06,20.0]
[1738894937724,25.29416921,195.07,195.02,5.1276]
[1738894938619,0.03,195.07,195.02,5.1276]
[1738894938850,0.03,195.07,195.03,0.76895882]
[1738894939342,0.03,195.07,195.03,26.03312803]
[1738894939545,0.03,195.07,195.06,25.26416921]
[1738894940323,0.03,195.09,195.06,25.26416921]
[1738894940552,0.03,195.09,195.07,26.03286558]
[1738894941050,0.03,195.09,195.08,5.1261]
[1738894941451,0.03,195.09,195.02,30.39176921]
[1738894941655,25.26416921,195.06,195.02,5.1276]
[1738894941819,25.26416921,195.07,195.02,5.1276]
[1738894944229,25.29416921,195.09,195.02,31.16072662]
[1738894944426,0.03,195.09,195.05,25.26416921]
[1738894944624,0.03,195.09,195.04,25.26416921]
[1738894945242,0.03,195.09,195.02,18.71565741]
[1738894945243,25.29416921,195.09,195.05,5.1268]
[1738894945446,25.26416921,195.07,195.02,5.1276]
[1738894945758,25.26416921,195.06,195.02,5.1276]
[1738894946123,25.26416921,195.08,195.02,5.1276]
[1738894946325,25.26416921,195.08,195.02,31.16069022]
[1738894946554,25.29416921,195.09,195.03,25.26416921]
[1738894946852,25.26416921,195.08,195.02,43.97979022]
[1738894947353,25.26416921,195.06,195.02,5.1276]
[1738894948055,0.03,195.09,195.02,5.1276]
[1738894948056,25.26416921,195.05,195.02,5.1276]
[1738894948231,25.26416921,195.06,195.02,5.1276]
[1738894948827,0.03,195.09,195.0,5.1279]
[1738894948828,25.26416921,195.04,195.0,5.1279]
[1738894949140,25.26416921,195.02,194.96,5.1292]
[1738894949948,25.26416921,195.03,194.97,25.26416921]
[1738894950127,25.26416921,195.07,195.0,25.26416921]
[1738894950656,25.26416921,195.06,195.0,25.26416921]
[1738894951352,25.26416921,195.07,195.01,5.1279]
[1738894952129,26.83146921,195.08,195.01,30.39206921]
[1738894952338,25.29416921,195.08,195.01,30.39206921]
[1738894952832,25.29416921,195.08,195.02,25.26416921]
[1738894952833,0.03,195.08,195.02,25.26416921]
[1738894953047,0.03,195.08,195.04,25.26416921]
[1738894953222,0.03,195.08,195.03,25.26416921]
[1738894953423,0.03,195.08,195.04,5.1271]
[1738894954029,0.03,195.08,195.04,5.89593555]
[1738894954225,0.03,195.08,195.05,25.26416921]
[1738894954438,0.03,195.08,195.06,0.76873347]
[1738894954638,0.03,195.08,195.05,25.26416921]
[1738894955433,0.03,195.08,195.06,5.1266]
[1738894955769,25.29416921,195.08,195.02,25.26416921]
[1738894956054,25.26416921,195.07,195.02,5.1276]
[1738894956734,25.29416921,195.08,195.02,30.39176921]
[1738894956937,25.29416921,195.08,195.01,38.08396921]
[1738894957258,25.29416921,195.08,195.01,43.21186921]
[1738894957259,25.26416921,195.07,195.01,43.21186921]
[1738894957461,0.03,195.08,195.02,25.26416921]
[1738894957637,0.03,195.08,195.03,25.26416921]
[1738894957956,25.29416921,195.08,195.02,25.26416921]
[1738894958166,25.29416921,195.08,195.01,43.21186921]
[1738894959242,25.26416921,195.05,195.01,5.1279]
[1738894959443,25.26416921,195.04,195.01,5.1279]
[1738894959657,25.26416921,195.03,194.97,38.08616921]
[1738894959966,25.26416921,195.01,194.98,5.1287]
[1738894960335,25.26416921,195.02,194.98,5.1287]
[1738894961045,25.26416921,195.02,194.96,25.26416921]
[1738894961350,25.26416921,195.04,194.98,25.26416921]
[1738894961754,25.26416921,195.0,194.95,5.1292]
[1738894962355,25.26416921,194.99,194.95,5.1292]
[1738894962566,25.26416921,194.97,194.91,25.26416921]
[1738894962743,25.26416921,194.94,194.88,25.26416921]
[1738894963061,25.26416921,194.93,194.87,25.32716921]
[1738894963361,25.26416921,194.9,194.87,0.063]
[1738894963563,25.26416921,194.89,194.87,0.063]
[1738894963974,25.26416921,194.88,194.87,0.063]
[1738894964263,0.25098,194.91,194.87,0.063]
[1738894964264,25.26416921,194.91,194.87,0.063]
[1738894964561,25.26416921,194.9,194.87,0.063]
[1738894965850,25.26416921,194.91,194.87,0.063]
[1738894966266,25.26416921,194.92,194.87,0.063]
[1738894966565,25.26416921,194.91,194.87,0.063]
[1738894966764,25.26416921,194.9,194.87,0.063]
[1738894966942,25.26416921,194.88,194.87,0.063]
[1738894967135,25.26416921,194.98,194.9,1.0]
[1738894967334,25.26416921,195.06,194.97,25.26416921]
[1738894967564,25.26416921,195.06,194.93,20.0]
[1738894967565,31.56646921,195.07,194.99,25.26416921]
[1738894967737,25.26416921,195.06,194.99,25.26416921]
[1738894967942,25.26416921,195.06,194.98,25.26416921]
[1738894968865,25.26416921,195.03,194.96,25.26416921]
[1738894969164,25.26416921,195.02,194.95,5.1295]
[1738894969363,0.25098,195.05,194.95,5.1295]
[1738894969364,25.26416921,195.03,194.96,25.26416921]
[1738894969573,25.26416921,195.04,194.96,25.26416921]
[1738894969947,25.26416921,195.04,194.93,32.8245]
[1738894969948,25.26416921,195.04,194.97,25.26416921]
[1738894970148,25.26416921,195.04,194.94,5.1297]
[1738894970149,25.51514921,195.05,194.98,25.26416921]
[1738894970839,25.51514921,195.05,194.97,25.26416921]
[1738894971564,25.51514921,195.05,194.97,30.39286921]
[1738894971961,0.25098,195.03,194.97,5.1287]
[1738894972164,25.26416921,195.04,194.94,25.26416921]
[1738894972165,25.26416921,195.01,194.94,25.26416921]
[1738894972364,25.26416921,195.02,194.95,25.26416921]
[1738894972948,25.26416921,195.03,194.96,25.26416921]
[1738894973146,25.26416921,195.05,194.97,25.26416921]
[1738894973568,0.25098,195.04,194.98,5.1287]
[1738894974178,25.51514921,195.04,194.97,30.39306921]
[1738894974359,0.25098,195.04,194.97,30.39306921]
[1738894974669,0.25098,195.04,194.98,25.26416921]
[1738894975045,6.42779,195.07,195.01,25.26416921]
[1738894975245,6.3023,195.07,195.02,25.26416921]
[1738894975478,6.3023,195.07,195.03,25.26416921]
[1738894975677,0.25098,195.04,194.98,25.26416921]
[1738894976269,0.25098,195.04,194.99,25.26416921]
[1738894976854,6.3023,195.07,195.01,25.26416921]
[1738894977051,6.3023,195.07,195.02,25.26416921]
[1738894977258,0.25098,195.06,195.02,25.26416921]
[1738894977964,25.51514921,195.06,195.0,25.26416921]
[1738894978175,29.61644921,195.06,194.99,25.26416921]
[1738894979193,0.25098,195.04,194.99,25.26416921]
[1738894979684,0.25098,195.04,194.98,25.26416921]
[1738894980478,0.25098,195.04,194.96,5.129]
[1738894980479,4.1013,195.06,195.0,25.26416921]
[1738894980659,0.25098,195.05,195.01,25.26416921]
[1738894982087,0.25098,195.05,195.0,25.26416921]
[1738894982263,25.51514921,195.05,194.99,25.26416921]
[1738894982463,29.61664921,195.05,194.99,25.26416921]
[1738894982864,0.25098,195.05,195.0,25.26416921]
[1738894983283,0.25098,195.05,194.99,25.26416921]
[1738894983594,4.35248,195.05,194.99,25.26416921]
[1738894983780,4.35248,195.05,194.98,30.39286921]
[1738894983781,29.61664921,195.05,194.98,30.39286921]
[1738894984366,55.38965921,195.02,194.95,25.26416921]
[1738894984602,25.51514921,195.01,194.94,25.26416921]
[1738894985102,30.12549,195.0,194.94,25.26416921]
[1738894985263,0.12549,194.98,194.93,25.26416921]
[1738894985466,31.13324921,194.99,194.93,25.26416921]
[1738894985685,1.76618,194.99,194.93,25.26416921]
[1738894985992,1.76618,194.99,194.93,30.39406921]
[1738894986191,0.12549,194.96,194.9,30.39496921]
[1738894986395,0.25098,194.95,194.9,25.26416921]
[1738894986767,0.12549,194.95,194.91,25.26416921]
[1738894986986,30.0,194.94,194.88,25.26416921]
[1738894987189,0.37647,194.92,194.87,25.32716921]
[1738894987396,0.37647,194.92,194.87,0.063]
[1738894987397,30.0,194.89,194.87,0.063]
[1738894987569,39.05248774,194.88,194.87,0.063]
[1738894987887,45.27758774,194.88,194.87,0.063]
[1738894988191,0.37647,194.84,194.79,25.26416921]
[1738894988364,0.12549,194.81,194.76,25.26416921]
[1738894988568,0.25098,194.82,194.77,25.26416921]
[1738894988775,0.25098,194.82,194.78,25.26416921]
[1738894988977,0.25098,194.82,194.79,25.26416921]
[1738894989680,0.25098,194.82,194.77,25.26416921]
[1738894990274,0.25098,194.82,194.76,30.39846921]
[1738894990474,25.51514921,194.82,194.76,30.39846921]
[1738894990779,25.51514921,194.82,194.77,25.26416921]
[1738894990780,0.25098,194.82,194.77,25.26416921]
[1738894991092,6.2251,194.88,194.81,25.26416921]
[1738894991297,25.26416921,194.87,194.81,25.26416921]
[1738894991478,6.2251,194.88,194.82,25.26416921]
[1738894991793,6.2251,194.88,194.83,30.39676921]
[1738894992093,0.25098,194.87,194.83,30.39676921]
[1738894992299,29.28783705,194.92,194.83,30.39676921]
[1738894992300,25.26416921,194.93,194.86,25.26416921]
[1738894992505,8.1685,194.94,194.88,25.26416921]
[1738894992869,8.1685,194.94,194.87,25.26416921]
[1738894992870,33.43266921,194.94,194.87,25.26416921]
[1738894993070,25.26416921,194.93,194.86,25.26416921]
[1738894993283,33.43266921,194.94,194.87,25.26416921]
[1738894993497,25.26416921,194.93,194.88,5.1313]
[1738894993801,25.51514921,194.92,194.85,25.26416921]
[1738894993976,25.26416921,194.91,194.84,30.39656921]
[1738894994303,34.22889,194.96,194.84,30.39656921]
[1738894994304,7.94751012,195.04,194.91,1.0]
[1738894994485,7.94751012,195.04,194.99,25.26416921]
[1738894994675,7.94751012,195.04,195.0,25.26416921]
[1738894994877,7.94751012,195.04,195.01,25.26416921]
[1738894995082,7.94751012,195.04,194.94,0.76907914]
[1738894995283,7.94751012,195.04,195.01,25.26416921]
[1738894995479,7.94751012,195.04,195.02,5.1276]
[1738894995802,25.29416921,195.07,195.02,5.1276]
[1738894995982,25.29416921,195.07,195.0,5.128]
[1738894995983,25.26416921,195.05,195.0,5.128]
[1738894996378,25.26416921,195.06,195.0,5.128]
[1738894997099,25.26416921,195.05,194.98,38.08536921]
[1738894997404,25.26416921,195.05,194.98,25.26416921]
[1738894997786,25.26416921,195.04,194.97,30.39306921]
[1738894998295,25.26416921,195.05,194.98,25.26416921]
[1738894999205,25.26416921,195.05,194.99,5.1284]
[1738894999406,25.26416921,195.03,194.97,5.1288]
[1738894999581,0.12549,195.05,194.97,5.1288]
[1738894999582,25.26416921,195.02,194.97,5.1288]
[1738895001406,25.26416921,195.02,194.95,5.1295]
[1738895001886,25.26416921,195.02,194.95,30.39366921]
[1738895003100,25.26416921,195.01,194.95,5.1295]
[1738895003412,25.26416921,195.0,194.95,5.1295]
[1738895003789,25.26416921,194.99,194.95,5.1295]
[1738895003990,0.25098,195.0,194.93,5.1298]
[1738895003991,25.26416921,194.97,194.93,5.1298]
[1738895004502,25.26416921,194.99,194.93,5.1298]
[1738895004808,25.26416921,194.99,194.93,30.39396921]
[1738895005005,25.26416921,195.0,194.93,30.39396921]
[1738895005391,25.26416921,194.99,194.93,5.1298]
[1738895006207,25.26416921,195.02,194.95,25.26416921]
[1738895006406,25.26416921,195.04,194.97,25.26416921]
[1738895006806,25.29416921,195.05,194.98,25.26416921]
[1738895007007,0.03,195.05,195.0,25.26416921]
[1738895007316,0.03,195.05,195.01,25.26416921]
[1738895007522,0.03,195.05,195.0,5.1282]
[1738895007821,0.12549,195.01,194.92,5.1303]
[1738895008038,25.26416921,194.97,194.92,5.1303]
[1738895008321,25.26416921,194.98,194.92,5.1303]
[1738895008688,25.26416921,194.99,194.92,5.1303]
[1738895009485,30.0,195.03,194.96,25.26416921]
[1738895009486,25.26416921,195.03,194.96,25.26416921]
[1738895009794,25.26416921,195.04,194.96,25.26416921]
[1738895010312,25.26416921,195.03,194.96,25.26416921]
[1738895010627,25.26416921,195.04,194.97,30.39306921]
[1738895010924,0.03,195.05,194.98,25.26416921]
[1738895011084,0.03,195.05,195.0,20.0]
[1738895011288,0.03,195.05,195.0,45.26416921]
[1738895011914,0.03,195.05,194.97,17.9513]
[1738895011915,25.26416921,195.04,194.97,43.21546921]
[1738895012087,25.26416921,195.04,194.91,0.83211087]
[1738895012088,25.26416921,195.01,194.95,5.1292]
[1738895012426,25.26416921,194.99,194.95,5.1292]
[1738895012719,25.26416921,194.99,194.93,5.13]
[1738895012926,25.26416921,195.0,194.93,5.13]
[1738895013089,25.26416921,194.99,194.93,5.13]
[1738895013503,25.26416921,194.98,194.93,5.13]
[1738895013694,25.26416921,194.99,194.93,5.13]
[1738895014896,25.26416921,195.0,194.93,5.13]
[1738895015418,25.26416921,195.01,194.94,25.26416921]
[1738895015629,25.26416921,195.03,194.96,45.26416921]
[1738895016815,25.26416921,195.02,194.97,5.1289]
[1738895017124,25.26416921,195.01,194.97,5.1289]
[1738895017328,25.26416921,195.02,194.97,5.1289]
[1738895017818,0.28098,195.05,194.97,5.1289]
[1738895017819,25.26416921,195.01,194.97,5.1289]
[1738895019018,25.26416921,194.98,194.92,5.1303]
[1738895019220,25.26416921,194.97,194.92,5.1303]
[1738895019420,25.26416921,194.96,194.92,5.1303]
[1738895019720,25.26416921,194.98,194.92,5.1303]
[1738895019911,25.26416921,194.97,194.91,5.1935]
[1738895020116,25.26416921,194.98,194.91,5.1935]
[1738895020822,0.12549,194.99,194.91,5.1935]
[1738895020823,25.26416921,194.96,194.91,5.1935]
[1738895021609,25.26416921,194.95,194.91,5.1935]
[1738895022029,25.26416921,194.92,194.91,0.063]
[1738895022519,25.51514921,194.92,194.91,0.063]
[1738895022730,25.64063921,194.92,194.91,0.063]
[1738895024999,0.25098,194.92,194.91,0.063]
[1738895025222,25.26416921,194.93,194.91,0.063]
[1738895025405,25.51514921,194.92,194.91,0.063]
[1738895025605,25.64063921,194.92,194.91,0.063]
[1738895027828,43.66968774,194.92,194.91,0.063]
[1738895028029,68.93385695,194.92,194.91,0.063]
[1738895028220,69.93385695,194.92,194.91,0.063]
[1738895028529,70.93385695,194.92,194.91,0.063]
[1738895028732,78.13535695,194.92,194.91,0.063]
[1738895028927,52.87118774,194.92,194.91,0.063]
[1738895029125,51.87118774,194.92,194.91,0.063]
[1738895030135,33.84213921,194.92,194.91,0.063]
[1738895030505,25.64063921,194.92,194.91,0.063]
[1738895030827,25.64063921,194.92,194.84,25.26416921]
[1738895030828,0.12549,194.91,194.84,25.26416921]
[1738895031021,0.25098,194.9,194.84,25.26416921]
[1738895031334,25.26416921,194.92,194.87,20.0]
[1738895031633,7.94751012,194.95,194.89,25.26416921]
[1738895032306,25.26416921,194.96,194.89,25.26416921]
[1738895032907,25.26416921,194.98,194.91,25.26416921]
[1738895033229,7.94751012,195.01,194.94,25.26416921]
[1738895033230,33.21167933,195.01,194.94,25.26416921]
[1738895033605,33.21167933,195.01,194.95,5.1295]
[1738895034022,0.25098,195.0,194.95,5.1295]
[1738895034315,25.26416921,195.01,194.95,5.1295]
[1738895035437,61.0,195.02,194.96,25.26416921]
[1738895035733,61.0,195.02,194.97,5.1289]
[1738895036132,61.0,195.02,194.97,30.39306921]
[1738895037608,61.0,195.02,194.99,25.26416921]
[1738895037808,0.03,195.05,194.99,25.26416921]
[1738895038636,0.03,195.02,194.98,25.26416921]
[1738895038942,0.03,195.02,194.97,5.1289]
[1738895040442,0.03,195.02,194.97,30.39306921]
[1738895041141,0.03,195.02,195.0,45.26416921]
[1738895041317,0.03,195.02,194.99,25.26416921]
[1738895041529,0.03,195.02,194.97,43.21546921]
[1738895041745,0.03,195.02,194.97,17.9513]
[1738895043424,0.03,195.02,194.97,43.21546921]
[1738895044033,0.03,195.02,194.98,25.26416921]
[1738895044239,0.03,195.05,195.01,25.26416921]
[1738895044548,0.03,195.05,195.03,25.26416921]
[1738895044716,0.03,195.05,195.01,15.78896262]
[1738895045917,0.03,195.05,195.02,5.1276]
[1738895046119,0.03,195.05,195.02,20.91656262]
[1738895046334,0.03,195.05,195.03,16.5579407]
[1738895046636,0.03,195.05,195.03,26.0296122]
[1738895047323,0.03,195.05,195.04,50.38773412]
[1738895047517,0.0001,195.07,195.04,51.15655194]
[1738895047835,0.0001,195.07,195.06,25.26063412]
[1738895048035,0.0001,195.07,195.05,25.26063412]
[1738895048240,0.0001,195.07,195.04,25.1271]
[1738895048439,0.0001,195.07,195.05,25.26063412]
[1738895049042,0.0001,195.07,195.04,25.89594677]
[1738895049043,0.0001,195.07,195.06,26.02942896]
[1738895049338,0.0001,195.07,195.06,25.26063412]
[1738895049640,0.0001,195.07,195.06,30.38723412]
[1738895051020,0.0001,195.07,195.06,5.1266]
[1738895052737,0.0001,195.07,195.05,5.1268]
[1738895052939,25.26073412,195.07,195.02,5.1276]
[1738895053949,0.0001,195.07,195.02,5.1276]
[1738895054156,0.0001,195.07,195.03,25.26063412]
[1738895054653,0.0001,195.07,195.06,30.38723412]
[1738895055354,0.0001,195.07,195.06,5.1266]
[1738895055537,0.0001,195.07,195.01,5.1279]
[1738895055850,0.0001,195.07,195.01,30.38853412]
[1738895056022,0.0001,195.07,195.02,25.26063412]
[1738895056227,0.0001,195.07,195.01,30.38853412]
[1738895056550,25.26063412,195.04,194.97,25.26063412]
[1738895057051,25.26063412,195.03,194.98,5.1287]
[1738895057736,25.26063412,195.03,194.99,20.0]
[1738895057939,25.26063412,195.03,194.97,5.1289]
[1738895058351,25.26063412,195.04,194.97,30.38953412]
[1738895059328,25.26063412,195.05,194.98,25.26063412]
[1738895059821,25.26063412,195.05,194.99,5.1284]
[1738895060157,25.26063412,195.02,194.99,5.1284]
[1738895060856,25.26063412,195.03,194.99,5.1284]
[1738895061032,0.37647,195.06,194.98,25.26063412]
[1738895061033,25.26063412,195.05,194.98,25.26063412]
[1738895061241,25.26063412,195.06,194.99,25.26063412]
[1738895061440,25.26063412,195.05,194.98,25.26063412]
[1738895063062,0.0001,195.07,195.01,25.26063412]
[1738895063939,0.0001,195.07,195.02,25.26063412]
[1738895064137,0.0001,195.07,195.04,25.26063412]
[1738895064552,0.0001,195.07,195.03,25.26063412]
[1738895065356,0.0001,195.07,195.04,5.1271]
[1738895065938,0.0001,195.07,195.06,20.0]
[1738895066266,25.48763412,195.17,195.06,45.26063412]
[1738895066430,25.48763412,195.17,195.1,25.26063412]
[1738895066633,25.26063412,195.16,195.09,25.26063412]
[1738895067062,25.26063412,195.15,195.08,25.26063412]
[1738895067574,25.26063412,195.14,195.09,5.1258]
[1738895068758,15.78181669,195.14,195.09,5.1258]
[1738895069065,15.78181669,195.12,195.09,5.1258]
[1738895069260,15.78181669,195.1,195.04,5.1271]
[1738895070269,15.78181669,195.09,195.04,5.1271]
[1738895070871,15.78181669,195.07,195.04,5.1271]
[1738895071044,15.78181669,195.08,195.04,5.1271]
[1738895071543,15.78181669,195.07,195.02,6.4348323]
[1738895071744,15.78181669,195.06,195.02,5.1276]
[1738895071958,4.6125,195.12,195.02,5.1276]
[1738895071959,15.78181669,195.08,195.02,5.1276]
[1738895072463,15.78181669,195.06,195.02,5.1276]
[1738895073271,15.78181669,195.06,195.0,5.1282]
[1738895073764,15.78181669,195.07,195.0,5.1282]
[1738895073973,15.78181669,195.08,195.01,15.78181669]
[1738895074358,15.78181669,195.09,195.01,15.78181669]
[1738895074867,15.78181669,195.07,195.0,33.73051669]
[1738895075056,15.78181669,195.08,195.01,15.78181669]
[1738895076152,15.78181669,195.08,195.02,5.1276]
[1738895076479,0.12549,195.1,195.02,5.1276]
[1738895076773,15.78181669,195.05,195.02,5.1276]
[1738895076940,15.78181669,195.07,195.02,5.1276]
[1738895077560,0.03,195.08,195.02,34.49754661]
[1738895078156,0.03,195.08,195.03,15.78181669]
[1738895079373,0.03,195.08,195.04,5.1271]
[1738895083564,0.03,195.08,195.03,5.1274]
[1738895084067,15.81181669,195.08,195.03,5.1274]
[1738895085057,15.81181669,195.08,195.02,5.1276]
[1738895085381,15.78181669,195.07,195.02,5.1276]
[1738895086577,15.78181669,195.07,195.02,20.0]
[1738895086760,15.78181669,195.07,195.03,20.0]
[1738895087361,15.78181669,195.07,195.0,5.1912]
[1738895088279,15.78181669,195.07,195.02,0.063]
[1738895089182,15.78181669,195.04,195.02,0.063]
[1738895089376,15.78181669,195.05,195.02,0.063]
[1738895089680,15.78181669,195.04,195.02,0.063]
[1738895093181,15.78181669,195.03,195.02,0.063]
[1738895093990,16.15828669,195.03,195.02,0.063]
[1738895094589,35.18473522,195.03,195.02,0.063]
[1738895094783,59.84705191,195.03,195.02,0.063]
[1738895095083,15.78831853,195.0,194.99,0.063]
[1738895095293,0.25098,194.94,194.91,0.063]
[1738895095465,55.03878669,194.92,194.91,0.063]
[1738895095664,67.45063522,194.92,194.91,0.063]
[1738895095868,54.03878669,194.92,194.91,0.063]
[1738895096793,23.66231669,194.92,194.91,0.063]
[1738895097091,4.48,194.94,194.91,0.063]
[1738895097288,15.78181669,194.98,194.91,15.84481669]
[1738895097497,15.78181669,194.99,194.92,15.78181669]
[1738895097794,8.01130427,194.93,194.91,0.063]
[1738895098576,46.15828669,194.92,194.91,0.063]
[1738895099179,47.78778669,194.92,194.91,0.063]
[1738895099391,61.19963522,194.92,194.91,0.063]
[1738895099596,67.84393522,194.92,194.91,0.063]
[1738895100494,24.05561669,194.92,194.91,0.063]
[1738895100673,15.78181669,194.92,194.91,0.063]
[1738895101076,15.78181669,194.93,194.92,0.063]
[1738895102176,23.79312096,194.95,194.92,0.063]
[1738895102677,8.01130427,194.95,194.92,0.063]
[1738895103573,25.29781378,194.99,194.92,0.063]
[1738895104081,25.29781378,194.98,194.92,0.063]
[1738895104401,25.29781378,194.99,194.92,0.063]
[1738895104790,25.29781378,194.99,194.92,5.1933]
[1738895105087,25.29781378,194.97,194.92,5.1933]
[1738895105985,25.29781378,194.98,194.92,5.1933]
[1738895106186,4.6148,195.03,194.95,45.29781378]
[1738895106187,25.29781378,195.03,194.95,45.29781378]
[1738895106505,25.29781378,195.04,194.97,25.29781378]
[1738895106679,33.30911805,195.06,194.98,30.42651378]
[1738895106880,8.01130427,195.06,194.99,25.29781378]
[1738895107175,33.30911805,195.06,194.99,25.29781378]
[1738895107381,25.29781378,195.06,194.99,25.29781378]
[1738895107708,25.29781378,195.05,194.98,30.42651378]
[1738895107907,25.29781378,195.06,194.98,30.42651378]
[1738895109880,0.03,195.07,195.02,25.29781378]
[1738895110204,0.03,195.07,195.03,25.29781378]
[1738895111082,0.03,195.07,195.04,5.1271]
[1738895112688,25.32781378,195.07,195.02,5.1274]
[1738895112886,25.29781378,195.05,195.0,5.128]
[1738895113104,25.32781378,195.06,195.01,5.1278]
[1738895113279,0.03,195.06,195.01,5.1278]
[1738895113482,0.03,195.06,195.01,30.42561378]
[1738895113784,0.03,195.06,195.02,25.29781378]
[1738895115097,0.03,195.06,195.01,31.73939408]
[1738895115488,0.03,195.06,195.05,45.29781378]
[1738895115681,0.03,195.07,195.05,45.29781378]
[1738895116004,8.01130427,195.16,195.1,20.0]
[1738895116206,8.01130427,195.16,195.13,25.29781378]
[1738895116418,8.01130427,195.16,195.1,25.29781378]
[1738895116707,8.01130427,195.16,195.13,20.0]
[1738895117088,8.01130427,195.16,195.13,45.29781378]
[1738895117289,8.01130427,195.16,195.12,25.29781378]
[1738895117486,0.227,195.17,195.12,25.29781378]
[1738895117687,0.227,195.17,195.13,5.1247]
[1738895118009,0.227,195.17,195.13,30.42251378]
[1738895118890,0.227,195.17,195.15,25.29781378]
[1738895119109,0.227,195.17,195.16,25.29781378]
[1738895119596,0.227,195.17,195.15,25.29781378]
[1738895119801,0.227,195.17,195.16,25.29781378]
[1738895120689,0.227,195.17,195.16,30.42181378]
[1738895121686,0.227,195.17,195.16,5.124]
[1738895121920,0.227,195.17,195.13,5.1247]
[1738895122806,0.227,195.17,195.09,13.58262817]
[1738895122807,25.29781378,195.16,195.11,5.1251]
[1738895123015,25.29781378,195.15,195.08,25.29781378]
[1738895123201,25.29781378,195.15,195.09,5.1256]
[1738895124294,25.29781378,195.15,195.08,25.29781378]
[1738895124295,50.59562756,195.1,195.01,12.8194]
[1738895124619,50.59562756,195.1,194.94,2.0]
[1738895124620,25.29781378,195.02,194.95,0.76897719]
[1738895124793,25.29781378,195.02,194.96,5.129]
[1738895124990,25.29781378,195.03,194.96,5.129]
[1738895125220,30.0,195.08,194.96,5.129]
[1738895125400,4.6125,195.12,194.99,20.0]
[1738895125608,4.6124,195.13,195.0,0.76917322]
[1738895125801,6.5841,195.14,195.0,0.76917322]
[1738895125987,6.5841,195.14,195.01,1.0]
[1738895126323,25.29781378,195.12,195.04,25.29781378]
[1738895126520,25.29781378,195.1,195.01,25.29781378]
[1738895126815,25.29781378,195.04,194.96,5.1291]
[1738895127023,25.29781378,195.02,194.95,25.29781378]
[1738895127322,25.29781378,195.02,194.93,30.42781378]
[1738895127911,25.29781378,195.02,194.95,25.29781378]
[1738895128127,25.29781378,195.02,194.94,25.29781378]
[1738895128428,25.29781378,195.01,194.94,5.1295]
[1738895128802,25.29781378,195.0,194.94,5.1295]
[1738895129125,25.29781378,195.0,194.92,0.063]
[1738895129126,25.29781378,194.96,194.92,0.063]
[1738895129302,25.29781378,194.95,194.92,0.063]
[1738895129507,25.29781378,194.96,194.92,0.063]
[1738895129701,25.29781378,194.95,194.92,0.063]
[1738895129917,25.29781378,194.94,194.92,0.063]
[1738895130204,25.29781378,194.96,194.92,0.063]
[1738895130400,25.29781378,194.94,194.92,0.063]
[1738895130625,31.67191378,195.01,194.93,25.29781378]
[1738895131009,25.29781378,195.09,195.0,25.29781378]
[1738895131210,8.01130427,195.07,195.01,25.29781378]
[1738895131506,8.01130427,195.07,195.02,25.29781378]
[1738895131715,8.01130427,195.07,195.03,25.29781378]
[1738895131923,8.01130427,195.07,195.02,25.29781378]
[1738895132230,8.01130427,195.07,195.01,25.29781378]
[1738895132418,33.30911805,195.07,194.99,5.1284]
[1738895132727,25.29781378,195.08,195.0,26.06676662]
[1738895133726,25.29781378,195.11,195.03,25.29781378]
[1738895133928,25.29781378,195.1,195.02,25.29781378]
[1738895134227,25.29781378,195.08,195.0,26.06676662]
[1738895134523,25.29781378,195.09,195.02,25.29781378]
[1738895134830,25.29781378,195.08,195.01,30.42571378]